fUST/lending_fUST_20251007
["ID","MTS","AMOUNT","RATE_DAILY","PERIOD"]
[389750062,1759828328361,500.0,0.00024,120]
[389750063,1759828329335,500.0,0.00024,120]
[389750064,1759828329966,500.0,0.00024,120]
[389750065,1759828330721,500.0,0.00024,120]
[389750067,1759828331531,500.0,0.00024,120]
[389750079,1759828381444,455.5,0.0002876,120]
[389750082,1759828397174,500.0,0.00024,120]
[389750083,1759828398224,500.0,0.00024,120]
[389750084,1759828398847,500.0,0.00024,120]
[389750085,1759828399650,500.0,0.00024,120]
[389750086,1759828400490,500.0,0.00024,120]
[389750087,1759828401311,500.0,0.00024,120]
[389750088,1759828402131,500.0,0.00024,120]
[389750089,1759828402963,500.0,0.00024,120]
[389750090,1759828403779,500.0,0.00024,120]
[389750091,1759828404590,500.0,0.00024,120]
[389750095,1759828405461,500.0,0.00024,120]
[389750096,1759828406297,500.0,0.00024,120]
[389750097,1759828407091,500.0,0.00024,120]
[389750098,1759828408066,500.0,0.00024,120]
[389750099,1759828408633,500.0,0.00024,120]
[389750100,1759828409400,500.0,0.00024,120]
[389750101,1759828410198,460.44,0.00024,120]
[389750119,1759828475954,500.0,0.00024,120]
[389750120,1759828476725,500.0,0.00024,120]
[389750121,1759828477714,319.75,0.0003048,60]
[389750123,1759828511144,265.6489709,0.0003048,120]
[389750145,1759828716762,174.716579,0.00017234,120]
[389750151,1759829126900,529.0,0.00030488,60]
[389750152,1759829142535,2000.0,0.00030488,60]
[389750171,1759829301866,5000.0,0.000196,14]
[389750179,1759829309876,5000.0,0.000196,14]
[389750189,1759829318181,5000.0,0.000196,14]
[389750190,1759829326069,859.6208774,0.000196,14]
[389750191,1759829334331,5000.0,0.000196,14]
[389750192,1759829342932,5000.0,0.000196,14]
[389750193,1759829358416,5000.0,0.0001579,2]
[389750194,1759829366773,4475.230436,0.0001579,2]
[389750195,1759829366794,524.769564,0.0001579,2]
[389750196,1759829369125,-176.4,0.00016,2]
[389750197,1759829382305,5000.0,0.0001579,2]
[389750198,1759829390177,5000.0,0.0001579,2]
[389750240,1759829406340,0.01,0.0001579,2]
[389750241,1759829406362,4999.99,0.0001579,2]
[389750242,1759829410121,-36.72422564,0.00016,2]
[389750243,1759829410143,-397.60820691,0.00016853,2]
[389750284,1759829432764,-3682.67268254,0.00016517,2]
[389750286,1759829432774,-5000.0,0.00016684,2]
[389750288,1759829432783,-2225.23851089,0.00016853,2]
[389750290,1759829432793,-150.0,0.00016986,2]
[389750293,1759829432803,-2998.8313351,0.00017072,2]
[389750295,1759829432812,-1163.6172063,0.00017077,2]
[389750297,1759829432822,-174.716579,0.00017234,2]
[389750299,1759829432832,-2024.96723942,0.00017558,2]
[389750301,1759829432841,-300.0,0.00017785,2]
[389750303,1759829432851,-300.0,0.00017785,2]
[389750305,1759829432861,-300.0,0.00017785,2]
[389750307,1759829432870,-300.0,0.00017785,2]
[389750309,1759829432879,-300.0,0.00017785,2]
[389750311,1759829432888,-165.0,0.00017786,2]
[389750313,1759829432897,-2581.9520887,0.00018,2]
[389750315,1759829432910,-14854.25823204,0.00018045,2]
[389750317,1759829432923,-668.71191969,0.00018047,2]
[389750319,1759829432932,-1200.0,0.00018064,2]
[389750321,1759829432941,-3394.3852208,0.00018064,2]
[389750323,1759829432951,-177.51,0.00018068,3]
[389750325,1759829432960,-532.55,0.00018068,3]
[389750344,1759829433244,-500.0,0.00018077,2]
[389750345,1759829433255,-178.74677283,0.00018077,2]
[389750346,1759829433264,-500.0,0.00018077,2]
[389750347,1759829433275,-217.63711401,0.00018077,2]
[389750348,1759829433284,-500.0,0.00018077,2]
[389750349,1759829433294,-500.0,0.00018077,2]
[389750350,1759829433304,-500.0,0.00018077,2]
[389750351,1759829433314,-500.0,0.00018077,2]
[389750352,1759829433324,-500.0,0.00018077,2]
[389750353,1759829433334,-500.0,0.00018077,2]
[389750354,1759829433345,-500.0,0.00018077,2]
[389750355,1759829433355,-500.0,0.00018077,2]
[389750356,1759829433365,-500.0,0.00018077,2]
[389750357,1759829433374,-500.0,0.00018077,2]
[389750358,1759829433383,-500.0,0.00018077,2]
[389750359,1759829433393,-486.56501905,0.00018077,2]
[389750360,1759829433402,-500.0,0.00018077,2]
[389750361,1759829433412,-500.0,0.00018077,2]
[389750362,1759829433421,-442.51070837,0.00018077,2]
[389750363,1759829433430,-253.11877367,0.00018077,2]
[389750364,1759829433439,-500.0,0.00018077,2]
[389750365,1759829433448,-500.0,0.00018077,2]
[389750366,1759829433457,-634.10870062,0.00018077,2]
[389750367,1759829433466,-500.0,0.00018077,2]
[389750368,1759829433475,-500.0,0.00018077,2]
[389750369,1759829433484,-211.94809462,0.00018077,2]
[389750370,1759829433493,-500.0,0.00018077,2]
[389750371,1759829433502,-500.0,0.00018077,2]
[389750372,1759829433511,-584.08022729,0.00018077,2]
[389750373,1759829433520,-500.0,0.00018077,2]
[389750374,1759829433529,-639.15445295,0.00018077,2]
[389750375,1759829433538,-500.0,0.00018077,2]
[389750376,1759829433548,-500.0,0.00018077,2]
[389750377,1759829433558,-500.0,0.00018077,2]
[389750378,1759829433567,-561.85246179,0.00018077,2]
[389750379,1759829433576,-500.0,0.00018077,2]
[389750380,1759829433585,-500.0,0.00018077,2]
[389750381,1759829433594,-500.0,0.00018077,2]
[389750382,1759829433605,-500.0,0.00018077,2]
[389750383,1759829433615,-500.0,0.00018078,2]
[389750384,1759829433624,-68306.23666204,0.00018078,2]
[389750430,1759829438678,-5000.0,0.00017897,2]
[389750432,1759829438689,-3078.1934296,0.0001807,2]
[389750434,1759829438699,-19378.14461374,0.00018078,2]
[389750435,1759829438735,-666.36917242,0.00018078,2]
[389750582,1759829446623,-600.0,0.00016658,2]
[389750585,1759829462831,-487.35958298,0.00016492,2]
[389750586,1759829464885,-169.41212303,0.00016492,2]
[389750587,1759829466896,-322.94580909,0.00016492,2]
[389750588,1759829472248,-224.50755364,0.00016492,2]
[389750589,1759829474469,-357.02762364,0.00016492,2]
[389750590,1759829476190,-331.22139848,0.00016492,2]
[389750591,1759829477726,-183.44691103,0.00016492,2]
[389750592,1759829479291,-288.83188231,0.00016327,2]
[389750593,1759829481004,-198.52770067,0.00016327,2]
[389750594,1759829481025,-132.44440308,0.00016492,2]
[389750595,1759829482702,-171.16813973,0.00016492,2]
[389750596,1759829484426,-333.38820272,0.00016492,2]
[389750597,1759829486452,-249.75281525,0.00016492,2]
[389750598,1759829489427,-209.60645042,0.00016492,2]
[389750599,1759829491472,-159.13898203,0.00016492,2]
[389750600,1759829493994,-225.93281525,0.00016492,2]
[389750601,1759829495584,-520.37,0.00016492,2]
[389750602,1759829498797,-457.18073433,0.00016492,2]
[389750605,1759829716618,5000.0,0.0001579,2]
[389750607,1759829739013,0.02,0.0001579,2]
[389750608,1759829740590,-333.91692314,0.0001579,2]
[389750609,1759829758781,3076.0,0.00030518,60]
[389750610,1759829853174,5000.0,0.000196,14]
[389750611,1759829875829,5000.0,0.000196,14]
[389750612,1759829880254,379.6,0.00015774,2]
[389750613,1759829880901,379.6,0.00015774,2]
[389750614,1759829898557,5000.0,0.0001579,2]
[389750618,1759829921537,3716.040436,0.0001579,2]
[389750619,1759829921559,1283.959564,0.0001579,2]
[389750620,1759829925316,-525.36597858,0.0001579,2]
[389750624,1759829944277,1770.46959369,0.0001579,2]
[389750626,1759829955752,1477.25178414,0.00030529,120]
[389750629,1759830094620,500.00825975,0.00030529,60]
[389750645,1759830158039,348.512,0.0001579,2]
[389750646,1759830158554,1000.0,0.0001579,2]
[389750647,1759830159373,1000.0,0.0001579,2]
[389750648,1759830159714,1000.0,0.0001579,2]
[389750649,1759830160040,1000.0,0.0001579,2]
[389750650,1759830160325,1000.0,0.0001579,2]
[389750651,1759830160606,1000.0,0.0001579,2]
[389750652,1759830160878,830.29644915,0.0001579,2]
[389750653,1759830166637,-169.70355085,0.0001579,2]
[389750654,1759830166663,-1200.0,0.00015899,2]
[389750655,1759830166687,-163.9711861,0.000159,2]
[389750656,1759830166714,-150.0,0.00016,2]
[389750657,1759830166737,-163.97118608,0.00016065,2]
[389750658,1759830166762,-179.05035782,0.0001621,2]
[389750659,1759830166787,-163.97118608,0.00016229,2]
[389750660,1759830166809,-163.97118608,0.00016394,2]
[389750661,1759830166833,-1000.0,0.00016438,2]
[389750662,1759830166859,-163.97118608,0.00016558,2]
[389750663,1759830166882,-81.39016091,0.00016658,2]
[389750668,1759830232372,-355.02,0.00017968,3]
[389750669,1759830232397,-517.7,0.00017968,3]
[389750670,1759830232424,-316.79,0.00017968,3]
[389750671,1759830232448,-158.39,0.00017968,3]
[389750672,1759830232473,-472.1,0.00017968,3]
[389750675,1759830287414,-156.0,0.00019255,9]
[389750679,1759830304382,1200.0,0.00015789,2]
[389750680,1759830362370,300.0,0.00015789,2]
[389750681,1759830422504,300.0,0.00015789,2]
[389750684,1759830444766,1200.0,0.00015789,2]
[389750685,1759830482669,300.0,0.00015789,2]
[389750686,1759830543118,300.0,0.00015789,2]
[389750688,1759830552132,-1000.0,0.0001579,2]
[389750689,1759830552152,-1000.0,0.0001579,2]
[389750690,1759830552172,-1000.0,0.0001579,2]
[389750691,1759830552192,-147.06543059,0.0001579,2]
[389750692,1759830571123,-75.80756941,0.0001579,2]
[389750693,1759830571142,-150.0,0.00016034,2]
[389750694,1759830571162,-1238.596819,0.00016099,2]
[389750695,1759830571181,-666.0,0.00016181,2]
[389750696,1759830571200,-1378.4285892,0.00016277,2]
[389750697,1759830571221,-648.41993319,0.00016658,2]
[389750723,1759830631841,-670.1899059,0.00016658,2]
[389750725,1759830631850,-3306.2463869,0.00016668,2]
[389750727,1759830631859,-329.33048887,0.00016722,2]
[389750729,1759830631869,-165.0,0.00016834,2]
[389750731,1759830631878,-300.0,0.00016989,2]
[389750733,1759830631887,-18478.52890942,0.0001699,2]
[389750735,1759830631896,-1200.0,0.00017266,2]
[389750737,1759830631906,-220.55340288,0.00017533,2]
[389750739,1759830631915,-1351.72789146,0.00017629,2]
[389750741,1759830631923,-180.0,0.00017634,2]
[389750743,1759830631933,-11870.34282295,0.00017878,2]
[389750745,1759830631942,-2674.84767872,0.00017878,2]
[389750747,1759830631951,-713.81241369,0.00017967,2]
[389750749,1759830631961,-151.0,0.00017967,2]
[389750751,1759830631970,-256.09363206,0.00017967,2]
[389750753,1759830631982,-151.0,0.00017967,2]
[389750755,1759830631992,-1000.0,0.00017967,2]
[389750757,1759830632001,-151.0,0.00017967,2]
[389750759,1759830632010,-1000.0,0.00017967,2]
[389750761,1759830632020,-151.0,0.00017967,2]
[389750763,1759830632029,-1000.0,0.00017967,2]
[389750765,1759830632039,-250.0,0.00017967,2]
[389750767,1759830632048,-1000.0,0.00017967,2]
[389750769,1759830632058,-151.0,0.00017967,2]
[389750771,1759830632067,-250.0,0.00017967,2]
[389750773,1759830632076,-151.0,0.00017967,2]
[389750775,1759830632085,-250.0,0.00017967,2]
[389750777,1759830632094,-1000.0,0.00017967,2]
[389750779,1759830632105,-151.0,0.00017967,2]
[389750781,1759830632114,-250.0,0.00017967,2]
[389750783,1759830632123,-151.0,0.00017967,2]
[389750785,1759830632132,-250.0,0.00017967,2]
[389750787,1759830632141,-250.0,0.00017967,2]
[389750789,1759830632151,-151.0,0.00017967,2]
[389750791,1759830632160,-151.0,0.00017967,2]
[389750793,1759830632169,-250.0,0.00017967,2]
[389750795,1759830632178,-250.0,0.00017967,2]
[389750797,1759830632187,-151.0,0.00017967,2]
[389750799,1759830632196,-250.0,0.00017967,2]
[389750801,1759830632205,-151.0,0.00017967,2]
[389750803,1759830632214,-250.0,0.00017967,2]
[389750805,1759830632224,-151.0,0.00017967,2]
[389750807,1759830632233,-250.0,0.00017967,2]
[389750809,1759830632243,-151.0,0.00017967,2]
[389750811,1759830632253,-250.0,0.00017967,2]
[389750813,1759830632262,-253.25776274,0.00017967,2]
[389750815,1759830632271,-250.0,0.00017967,2]
[389750817,1759830632281,-250.0,0.00017967,2]
[389750819,1759830632290,-285.85213624,0.00017967,2]
[389750821,1759830632300,-3.12,0.00017968,3]
[389750823,1759830632309,-500.0,0.00017977,2]
[389750825,1759830632318,-500.0,0.00017977,2]
[389750827,1759830632327,-342.67558081,0.00017977,2]
[389750829,1759830632336,-173.53916242,0.00017977,2]
[389750831,1759830632346,-382.50118982,0.00017977,2]
[389750833,1759830632355,-500.0,0.00017977,2]
[389750835,1759830632364,-402.48405999,0.00017977,2]
[389750836,1759830632373,-500.0,0.00017977,2]
[389750838,1759830632382,-500.0,0.00017977,2]
[389750840,1759830632392,-500.0,0.00017977,2]
[389750842,1759830632401,-1144.25624694,0.00017978,2]
[389750845,1759830632417,-2099.04022601,0.00017978,2]
[389750847,1759830632428,-24735.61897469,0.00017978,2]
[389751307,1759830637752,-342021.08455236,0.00017978,2]
[389751308,1759830637762,-500.0,0.00017978,2]
[389751309,1759830637772,-4602.26866937,0.00018021,2]
[389751310,1759830637782,-2000.0,0.00018028,2]
[389751311,1759830637791,-151.0,0.000181,2]
[389751312,1759830637800,-500.0,0.00018252,2]
[389751313,1759830637810,-1000.0,0.00018356,2]
[389751314,1759830637819,-195.0,0.00018434,2]
[389751315,1759830637828,-151.0,0.00018469,2]
[389751316,1759830637838,-500.0,0.00018469,2]
[389751317,1759830637847,-151.0,0.00018469,2]
[389751318,1759830637858,-151.0,0.00018469,2]
[389751319,1759830637868,-934.0,0.00018469,2]
[389751320,1759830637877,-301.999999,0.00018469,2]
[389751321,1759830637887,-151.0,0.00018469,2]
[389751322,1759830637896,-151.0,0.00018469,2]
[389751323,1759830637905,-151.0,0.00018469,2]
[389751324,1759830637915,-151.0,0.00018469,2]
[389751325,1759830637924,-151.0,0.00018469,2]
[389751326,1759830637933,-151.1316672,0.00018469,2]
[389751327,1759830637943,-151.0,0.00018469,2]
[389751329,1759830637953,-151.20526058,0.00018469,2]
[389751331,1759830637963,-151.0,0.00018469,2]
[389751332,1759830637972,-151.0,0.00018469,2]
[389751333,1759830637987,-151.0,0.00018469,2]
[389751334,1759830637997,-151.0,0.00018469,2]
[389751335,1759830638007,-151.0,0.00018469,2]
[389751336,1759830638017,-151.0,0.00018469,2]
[389751337,1759830638027,-151.57643874,0.00018469,2]
[389751338,1759830638037,-151.40055561,0.00018469,2]
[389751339,1759830638047,-151.0,0.00018469,2]
[389751340,1759830638059,-151.0,0.00018469,2]
[389751341,1759830638068,-229.07,0.00018469,2]
[389751342,1759830638077,-229.07,0.00018469,2]
[389751343,1759830638087,-229.07,0.00018469,2]
[389751344,1759830638097,-229.07,0.00018469,2]
[389751345,1759830638108,-229.07,0.00018469,2]
[389751346,1759830638117,-229.07,0.00018469,2]
[389751347,1759830638127,-229.07,0.00018469,2]
[389751348,1759830638136,-167.96,0.00018469,2]
[389751349,1759830638146,-220.55340284,0.00018497,2]
[389751350,1759830638155,-500.0,0.00018526,2]
[389751351,1759830638165,-168.0,0.00018528,2]
[389751352,1759830638175,-300.0,0.00018541,2]
[389751353,1759830638184,-300.0,0.00018541,2]
[389751354,1759830638194,-300.0,0.00018541,2]
[389751355,1759830638204,-300.0,0.00018541,2]
[389751356,1759830638214,-300.0,0.00018541,2]
[389751357,1759830638226,-300.0,0.00018541,2]
[389751358,1759830638237,-300.0,0.00018541,2]
[389751359,1759830638247,-300.0,0.00018541,2]
[389751360,1759830638258,-300.0,0.00018541,2]
[389751361,1759830638268,-300.0,0.00018541,2]
[389751362,1759830638279,-300.0,0.00018541,2]
[389751363,1759830638289,-300.0,0.00018541,2]
[389751364,1759830638299,-300.0,0.00018541,2]
[389751365,1759830638309,-300.0,0.00018541,2]
[389751366,1759830638319,-300.0,0.00018541,2]
[389751367,1759830638329,-600.0,0.00018541,2]
[389751368,1759830638338,-420.0,0.00018556,2]
[389751369,1759830638348,-168.0,0.00018569,2]
[389751370,1759830638357,-345.0,0.0001858,2]
[389751371,1759830638367,-151.0,0.00018586,2]
[389751372,1759830638376,-151.0,0.00018586,2]
[389751373,1759830638386,-168.99728248,0.00018586,2]
[389751374,1759830638396,-230.01271824,0.00018586,2]
[389751375,1759830638405,-151.0,0.00018586,2]
[389751376,1759830638415,-1000.0,0.0001863,2]
[389751377,1759830638425,-151.0,0.000187,2]
[389751378,1759830638434,-151.0,0.00018743,2]
[389751379,1759830638444,-500.0,0.00018743,2]
[389751380,1759830638454,-151.0,0.00018743,2]
[389751381,1759830638463,-934.0,0.00018743,2]
[389751382,1759830638473,-257.23413138,0.00018743,2]
[389751383,1759830638482,-151.0,0.00018743,2]
[389751384,1759830638492,-151.0,0.00018743,2]
[389751385,1759830638501,-151.0,0.00018743,2]
[389751386,1759830638512,-151.0,0.00018743,2]
[389751387,1759830638521,-151.0,0.00018743,2]
[389751388,1759830638532,-151.0,0.00018743,2]
[389751389,1759830638542,-199.9147262,0.00018743,2]
[389751390,1759830638555,-345.0,0.00018749,2]
[389751391,1759830638564,-11870.34282293,0.00018752,2]
[389751392,1759830638574,-168.0,0.00018752,2]
[389751393,1759830638584,-500.0,0.000188,2]
[389751394,1759830638594,-425.11513191,0.000188,2]
[389751395,1759830638604,-151.0,0.000188,2]
[389751396,1759830638614,-151.0,0.000188,2]
[389751397,1759830638623,-203.0,0.0001884,2]
[389751398,1759830638633,-345.0,0.00018858,2]
[389751399,1759830638643,-205.3908823,0.0001886,2]
[389751400,1759830638653,-301.59443347,0.0001886,2]
[389751401,1759830638663,-151.0,0.000189,2]
[389751402,1759830638674,-1000.0,0.00018904,2]
[389751403,1759830638684,-187.91647733,0.00018907,2]
[389751404,1759830638693,-244.18588676,0.00018907,2]
[389751405,1759830638703,-2158.0,0.00018908,2]
[389751406,1759830638713,-630.0,0.00018908,2]
[389751407,1759830638723,-150.0,0.00018908,2]
[389751408,1759830638733,-111585.06561645,0.00019,2]
[389751409,1759830638743,-151.0,0.00019,2]
[389751410,1759830638752,-151.0,0.00019,2]
[389751411,1759830638762,-152.571811,0.00019,2]
[389751412,1759830638772,-151.0,0.00019,2]
[389751413,1759830638782,-153.134092,0.00019,2]
[389751414,1759830638793,-937.045121,0.00019,2]
[389751415,1759830638803,-937.045121,0.00019,2]
[389751416,1759830638813,-151.0,0.00019,2]
[389751417,1759830638823,-937.045121,0.00019,2]
[389751418,1759830638832,-151.0,0.00019,2]
[389751419,1759830638845,-937.045121,0.00019,2]
[389751421,1759830638860,-273.831473,0.00019,2]
[389751423,1759830638870,-151.0,0.00019,2]
[389751425,1759830638879,-153.068941,0.00019,2]
[389751426,1759830638889,-153.018632,0.00019,2]
[389751427,1759830638898,-151.0,0.00019,2]
[389751429,1759830638908,-151.0,0.00019,2]
[389751430,1759830638918,-151.0,0.00019,2]
[389751432,1759830638928,-151.0,0.00019,2]
[389751434,1759830638937,-6936.34172,0.00019,2]
[389751436,1759830638946,-151.0,0.00019,2]
[389751438,1759830638957,-6936.34172,0.00019,2]
[389751439,1759830638967,-151.0,0.00019,2]
[389751441,1759830638978,-6936.34172,0.00019,2]
[389751443,1759830638990,-6936.34172,0.00019,2]
[389751446,1759830639000,-151.0,0.00019,2]
[389751448,1759830639010,-1918.853781,0.00019,2]
[389751450,1759830639019,-151.0,0.00019,2]
[389751452,1759830639030,-1918.853781,0.00019,2]
[389751454,1759830639039,-1918.853781,0.00019,2]
[389751456,1759830639048,-1918.853781,0.00019,2]
[389751458,1759830639058,-151.0,0.00019,2]
[389751460,1759830639068,-198.0,0.00019017,2]
[389751462,1759830639078,-500.0,0.00019017,2]
[389751464,1759830639088,-151.35091737,0.00019017,2]
[389751466,1759830639099,-934.0,0.00019017,2]
[389751468,1759830639109,-298.81870126,0.00019017,2]
[389751470,1759830639119,-151.0,0.00019017,2]
[389751472,1759830639129,-151.0,0.00019017,2]
[389751474,1759830639139,-151.0,0.00019017,2]
[389751475,1759830639148,-151.0,0.00019017,2]
[389751478,1759830639158,-500.0,0.00019074,2]
[389751480,1759830639168,-153.0,0.00019077,2]
[389751482,1759830639179,-177.30960461,0.00019078,2]
[389751484,1759830639188,-151.0,0.00019078,2]
[389751486,1759830639198,-151.0,0.00019078,2]
[389751488,1759830639207,-151.0,0.00019078,2]
[389751490,1759830639216,-153.112927,0.00019078,2]
[389751492,1759830639225,-151.0,0.00019078,2]
[389751494,1759830639234,-151.0,0.00019078,2]
[389751496,1759830639244,-28719.03886596,0.00019078,2]
[389751498,1759830639254,-345.0,0.00019092,2]
[389751500,1759830639264,-151.0,0.000191,2]
[389751502,1759830639274,-151.0,0.000191,2]
[389751504,1759830639283,-151.0,0.000191,2]
[389751506,1759830639292,-151.0,0.000191,2]
[389751508,1759830639301,-200.20542948,0.00019173,2]
[389751510,1759830639310,-500.0,0.00019173,2]
[389751512,1759830639319,-200.32561186,0.00019173,2]
[389751514,1759830639329,-501.24197452,0.00019173,2]
[389751517,1759830639338,-500.74186662,0.00019173,2]
[389751519,1759830639347,-500.72310717,0.00019173,2]
[389751522,1759830639356,-500.0,0.00019173,2]
[389751524,1759830639365,-500.0,0.00019173,2]
[389751525,1759830639375,-502.87408958,0.00019173,2]
[389751528,1759830639385,-500.0,0.00019173,2]
[389751530,1759830639395,-500.0,0.00019173,2]
[389751532,1759830639404,-500.0,0.00019173,2]
[389751533,1759830639414,-500.0,0.00019173,2]
[389751534,1759830639423,-500.0,0.00019173,2]
[389751535,1759830639432,-500.0,0.00019173,2]
[389751536,1759830639441,-500.0,0.00019173,2]
[389751537,1759830639450,-500.53852983,0.00019173,2]
[389751538,1759830639459,-342.34883664,0.00019173,2]
[389751539,1759830639468,-159.63927334,0.00019173,2]
[389751540,1759830639477,-261.39363659,0.00019173,2]
[389751541,1759830639486,-500.86608413,0.00019173,2]
[389751542,1759830639495,-500.0,0.00019173,2]
[389751543,1759830639504,-500.0,0.00019173,2]
[389751544,1759830639512,-500.4367729,0.00019173,2]
[389751545,1759830639521,-500.0,0.00019173,2]
[389751546,1759830639531,-209.518,0.00019173,2]
[389751547,1759830639540,-500.0,0.00019178,2]
[389751548,1759830639548,-500.0,0.00019178,2]
[389751549,1759830639557,-500.0,0.00019178,2]
[389751550,1759830639566,-500.0,0.00019178,2]
[389751551,1759830639575,-500.0,0.00019178,2]
[389751552,1759830639585,-480.0,0.00019178,2]
[389751553,1759830639597,-500.0,0.00019178,2]
[389751554,1759830639606,-500.0,0.00019178,2]
[389751555,1759830639616,-500.0,0.00019178,2]
[389751556,1759830639625,-500.0,0.00019178,2]
[389751557,1759830639635,-500.0,0.00019178,2]
[389751558,1759830639644,-500.0,0.00019178,2]
[389751560,1759830639653,-500.0,0.00019178,2]
[389751562,1759830639662,-500.0,0.00019178,2]
[389751564,1759830639671,-500.0,0.00019178,2]
[389751566,1759830639680,-500.0,0.00019178,2]
[389751568,1759830639689,-589.81018776,0.00019178,2]
[389751570,1759830639699,-500.0,0.00019178,2]
[389751572,1759830639719,-500.0,0.00019178,2]
[389751574,1759830639740,-393.82418819,0.00019178,2]
[389751576,1759830639749,-391.21201223,0.00019178,2]
[389751578,1759830639759,-518.23,0.00019178,2]
[389751580,1759830639768,-447.44060206,0.00019178,2]
[389751582,1759830639777,-500.0,0.00019178,2]
[389751584,1759830639788,-500.0,0.00019178,2]
[389751586,1759830639797,-500.0,0.00019178,2]
[389751588,1759830639807,-500.0,0.00019178,2]
[389751590,1759830639816,-500.0,0.00019178,2]
[389751592,1759830639825,-1003.75,0.00019178,2]
[389751594,1759830639835,-500.0,0.00019178,2]
[389751596,1759830639844,-500.0,0.00019178,2]
[389751598,1759830639854,-508.02958997,0.00019178,2]
[389751600,1759830639863,-500.0,0.00019178,2]
[389751602,1759830639872,-500.0,0.00019178,2]
[389751604,1759830639882,-500.0,0.00019178,2]
[389751607,1759830639892,-500.0,0.00019178,2]
[389751608,1759830639902,-500.0,0.00019178,2]
[389751611,1759830639912,-500.0,0.00019178,2]
[389751613,1759830639922,-429.16727523,0.00019178,2]
[389751615,1759830639932,-390.99598464,0.00019178,2]
[389751617,1759830639942,-500.0,0.00019178,2]
[389751619,1759830639952,-500.0,0.00019178,2]
[389751621,1759830639961,-500.0,0.00019178,2]
[389751623,1759830639971,-394.44028713,0.00019178,2]
[389751625,1759830639983,-500.0,0.00019178,2]
[389751627,1759830639993,-500.0,0.00019178,2]
[389751629,1759830640003,-500.0,0.00019178,2]
[389751631,1759830640012,-500.0,0.00019178,2]
[389751633,1759830640022,-500.0,0.00019178,2]
[389751635,1759830640032,-500.0,0.00019178,2]
[389751637,1759830640041,-500.65442458,0.00019178,2]
[389751639,1759830640050,-500.0,0.00019178,2]
[389751641,1759830640062,-501.28909675,0.00019178,2]
[389751643,1759830640072,-500.0,0.00019178,2]
[389751645,1759830640081,-500.0,0.00019178,2]
[389751647,1759830640090,-500.0,0.00019178,2]
[389751649,1759830640100,-529.20798191,0.00019178,2]
[389751651,1759830640110,-461.06167971,0.00019178,2]
[389751653,1759830640119,-500.0,0.00019178,2]
[389751656,1759830640138,-500.0,0.00019178,2]
[389751658,1759830640149,-500.0,0.00019178,2]
[389751660,1759830640159,-500.0,0.00019178,2]
[389751662,1759830640169,-424.21411836,0.00019178,2]
[389751664,1759830640179,-500.0,0.00019178,2]
[389751666,1759830640188,-500.0,0.00019178,2]
[389751668,1759830640198,-500.0,0.00019178,2]
[389751670,1759830640209,-500.0,0.00019178,2]
[389751673,1759830640220,-591.0825963,0.00019178,2]